Cogmind - Beta 12 @@@ ROGUE MODE // 2023.05.14 @ 15:22:44 Player: Mr Goldstein Result: Destroyed by Y-45 Defender with Beam Rifle Performance ------------- Evolutions (2) 1000 Regions Visited (6) 1200 Robots Destroyed (0) 0 Value Destroyed (0) 0 Prototype IDs (1) 20 Alien Tech Used (0) 0 Bonus (544) 544 TOTAL SCORE: 2764 Bonus ------- Pacifist 470 Follower Combat Kills 74 Cogmind --------- Core Integrity 0/550 Matter 295/300 Energy 98/100 System Corruption 2% Temperature Cool (9) Movement Core (50) Location -8/Storage Parts ------- > --- POWER (1) -------- (None) > --- PROPULSION (2) --- (None) > --- UTILITY (6) ------ (None) > --- WEAPON (2) ------- (None) > --- INVENTORY (5) ---- Light Regenerative Plating Peak State ------------ > --- POWER ------------ (None) > --- PROPULSION ------- (None) > --- UTILITY ---------- Light Regenerative Plating > --- WEAPON ----------- (None) > --- INVENTORY -------- (None) [Rating: 6] Favorites ----------- Power None Propulsion None Utility Light Regenerative Plating Protection Light Regenerative Plating Weapon None Build | -11 -10 -10 -9 -9 -8 -8 ------- Run | Jun Mat Min Mat Min Mat Sto Slots Evolved 4 | . . . 2 . 2 . Power . | . . . . . . . Propulsion . | . . . . . . . Utility 4 | . . . 2 . 2 . Weapon . | . . . . . . . Parts Attached 1 | . . . . . . 1 Power . | . . . . . . . Engine . | . . . . . . . Core . | . . . . . . . Reactor . | . . . . . . . Propulsion . | . . . . . . . Treads . | . . . . . . . Leg . | . . . . . . . Wheel . | . . . . . . . Hover . | . . . . . . . Flight . | . . . . . . . Utility 1 | . . . . . . 1 Device . | . . . . . . . Storage . | . . . . . . . Processor . | . . . . . . . Hackware . | . . . . . . . Protection 1 | . . . . . . 1 Artifact . | . . . . . . . Weapon . | . . . . . . . Energy Gun . | . . . . . . . Energy Cannon . | . . . . . . . Ballistic Gun . | . . . . . . . Ballistic Cannon . | . . . . . . . Launcher . | . . . . . . . Special Weapon . | . . . . . . . Impact Weapon . | . . . . . . . Slashing Weapon . | . . . . . . . Piercing Weapon . | . . . . . . . Special Melee Weapon . | . . . . . . . Unidentified Prototypes 1 | . . . . . . 1 Parts Lost . | . . . . . . . Power . | . . . . . . . Propulsion . | . . . . . . . Utility . | . . . . . . . Weapon . | . . . . . . . Highest Loss Streak . | . . . . . . . To Critical Strikes . | . . . . . . . Average Slot Usage (%) . | . . . . . . . Naked Turns 350 | . 12 10 93 23 46 166 Heaviest Build . | . . . . . . . Greatest Support 3 | 3 3 3 3 3 3 3 Greatest Overweight (x) . | . . . . . . . Average Overweight (x) . | . . . . . . . Largest Inventory Capacity 5 | 5 5 5 5 5 5 5 Average Capacity 5 | 5 5 5 5 5 5 5 Most Carried 1 | . . . . . . 1 Average Carried . | . . . . . . . Final Capacity 5 | 5 5 5 5 5 5 5 Final Carried 1 | . . . . . . 1 Class Distribution -------------------- 85% | Mutant 14% | Commander-Mutant Dominant Class ---------------- Mutant | -10/Materials Mutant | -10/Mines Mutant | -9/Materials Mutant | -9/Mines Mutant | -8/Materials Mutant | -8/Storage Resources | -11 -10 -10 -9 -9 -8 -8 ----------- Run | Jun Mat Min Mat Min Mat Sto Matter Collected 207 | 96 . 97 . . . 14 Remotely . | . . . . . . . Salvage Created . | . . . . . . . Parts . | . . . . . . . Haulers Intercepted . | . . . . . . . Recyclers Shooed . | . . . . . . . Parts Field Recycled . | . . . . . . . Retrieved Matter . | . . . . . . . Parts Self-Destructed . | . . . . . . . Prevented . | . . . . . . . Kills | -11 -10 -10 -9 -9 -8 -8 ------- Run | Jun Mat Min Mat Min Mat Sto Combat Hostiles Destroyed . | . . . . . . . Classes Destroyed . | . . . . . . . Best Kill Streak . | . . . . . . . Combat Bots Only . | . . . . . . . Max Kills in Single Turn . | . . . . . . . Gunslinging . | . . . . . . . Exploded . | . . . . . . . Melee . | . . . . . . . Uniques/NPCs Destroyed . | . . . . . . . Combat | -11 -10 -10 -9 -9 -8 -8 -------- Run | Jun Mat Min Mat Min Mat Sto Damage Taken 785 | . . 147 78 . 109 451 Core 785 | . . 147 78 . 109 451 Absorbed by Shields . | . . . . . . . Core Remaining (%) 73 | 100 . 41 . 80 . . Volleys Fired . | . . . . . . . Largest . | . . . . . . . Hottest . | . . . . . . . Shots Fired . | . . . . . . . Gun . | . . . . . . . Cannon . | . . . . . . . Launcher . | . . . . . . . Special . | . . . . . . . Kinetic . | . . . . . . . Thermal . | . . . . . . . Explosive . | . . . . . . . Electromagnetic . | . . . . . . . Robot Hit Streak . | . . . . . . . Robot Miss Streak . | . . . . . . . Penetration Max . | . . . . . . . Secondary Targets . | . . . . . . . Shots Hit Robots . | . . . . . . . Core Hits 3 | . . 1 . . . 2 Critical Kills . | . . . . . . . Critical Parts Destroyed . | . . . . . . . Critical Strikes . | . . . . . . . Melee Attacks . | . . . . . . . Impact . | . . . . . . . Slashing . | . . . . . . . Piercing . | . . . . . . . Sneak Attacks . | . . . . . . . Combat Hostiles . | . . . . . . . Follow-up Attacks . | . . . . . . . Damage Inflicted 52 | . . 12 . . 8 32 Guns . | . . . . . . . Cannons . | . . . . . . . Explosions . | . . . . . . . Melee . | . . . . . . . Ramming 52 | . . 12 . . 8 32 Kinetic . | . . . . . . . Thermal . | . . . . . . . Explosive . | . . . . . . . Electromagnetic . | . . . . . . . Impact . | . . . . . . . Slashing . | . . . . . . . Piercing . | . . . . . . . Highest Corruption 2 | . . . . . 2 2 Average Corruption 2 | . . . . . 2 2 Corruption Purged . | . . . . . . . Corruption Blocked . | . . . . . . . Effects 3 | . . . . . . 3 Message Errors 1 | . . . . . . 1 Matter Fused 2 | . . . . . . 2 Overload Shots . | . . . . . . . Overflow Damage . | . . . . . . . Projectiles . | . . . . . . . Explosions . | . . . . . . . Melee . | . . . . . . . Knockbacks 1 | . . . . . . 1 Impact 1 | . . . . . . 1 Kinetic . | . . . . . . . Secondary . | . . . . . . . Self-Inflicted Damage 22 | . . 5 . . 3 14 Shots . | . . . . . . . Rammed 15 | . . 4 . . 2 9 Targets Rammed 15 | . . 4 . . 2 9 Kicked . | . . . . . . . Crushed . | . . . . . . . Highest Temperature 5 | . . . . . . 5 Average Temperature 5 | . . . . . . 5 Received Heat Transfer 363 | . . 78 42 . 45 198 Siege Activations . | . . . . . . . Robots Corrupted . | . . . . . . . Combat Hostiles . | . . . . . . . Parts Fried . | . . . . . . . Impact Corruptions . | . . . . . . . Robots Melted . | . . . . . . . Combat Hostiles . | . . . . . . . Parts Melted . | . . . . . . . Heat Transferred . | . . . . . . . Parts Sabotaged . | . . . . . . . Parts Stolen . | . . . . . . . Parts Stripped . | . . . . . . . Power Chain Reactions . | . . . . . . . Missiles Intercepted . | . . . . . . . Alert | -11 -10 -10 -9 -9 -8 -8 ------- Run | Jun Mat Min Mat Min Mat Sto Peak Influence 395 | . . . 36 13 34 395 Initial 14 | . . . . 13 4 14 Average 51 | . . . 13 13 13 98 Maximum Alert Level 1 | . . . . . . 1 Low Security (%) 94 | 100 100 100 100 100 100 88 Level 1 5 | . . . . . . 11 Level 2 . | . . . . . . . Level 3 . | . . . . . . . Level 4 . | . . . . . . . Level 5 . | . . . . . . . High Security . | . . . . . . . Max Security . | . . . . . . . Squads Dispatched 6 | . . 1 2 . . 3 Investigation 2 | . . . 1 . . 1 Extermination . | . . . . . . . Reinforcement 2 | . . . 1 . . 1 Assault 1 | . . 1 . . . . Garrison 1 | . . . . . . 1 Intercept . | . . . . . . . Searches Triggered . | . . . . . . . Construction Impeded . | . . . . . . . Haulers Reinforced . | . . . . . . . Active Scanning Responses . | . . . . . . . Cargo Convoy Interrupts . | . . . . . . . Stealth | -11 -10 -10 -9 -9 -8 -8 --------- Run | Jun Mat Min Mat Min Mat Sto Distress Signals 1 | . . . . . . 1 Communications Jammed . | . . . . . . . Distress Signals . | . . . . . . . Times Spotted 46 | . . 8 3 . 9 26 Peak Tracking Total 14 | . . 6 4 . 9 14 Tactical Retreats 5 | . . . . . . 5 Traps | -11 -10 -10 -9 -9 -8 -8 ------- Run | Jun Mat Min Mat Min Mat Sto Traps Triggered 3 | . . . 1 . . 2 Indirectly . | . . . . . . . Trap Hack Attempts . | . . . . . . . Triggered . | . . . . . . . Disarmed . | . . . . . . . Reprogrammed . | . . . . . . . Reused . | . . . . . . . Traps Extracted . | . . . . . . . Installed . | . . . . . . . Triggered . | . . . . . . . Machines | -11 -10 -10 -9 -9 -8 -8 ---------- Run | Jun Mat Min Mat Min Mat Sto Machines Disabled . | . . . . . . . Max in Single Turn . | . . . . . . . Machines Repaired . | . . . . . . . Machines Sabotaged . | . . . . . . . Overloaded Fab Kills . | . . . . . . . Hacking | -11 -10 -10 -9 -9 -8 -8 --------- Run | Jun Mat Min Mat Min Mat Sto Machines Accessed 1 | . . . . . . 1 Terminals 1 | . . . . . . 1 Fabricators . | . . . . . . . Repair Stations . | . . . . . . . Recycling Units . | . . . . . . . Scanalyzers . | . . . . . . . Garrison Access . | . . . . . . . Total Hacks 2 | . . . . . . 2 Successful 1 | . . . . . . 1 Failed 1 | . . . . . . 1 Catastrophic . | . . . . . . . Database Lockouts . | . . . . . . . Manual . | . . . . . . . Terminals 2 | . . . . . . 2 Fabricators . | . . . . . . . Repair Stations . | . . . . . . . Recycling Units . | . . . . . . . Scanalyzers . | . . . . . . . Garrison Access . | . . . . . . . Terminal Hacks 1 | . . . . . . 1 Open Door 1 | . . . . . . 1 Fabricator Hacks . | . . . . . . . Repair Station Hacks . | . . . . . . . Recycling Unit Hacks . | . . . . . . . Scanalyzer . | . . . . . . . Garrison Access Hacks . | . . . . . . . Unauthorized Hacks . | . . . . . . . Terminals . | . . . . . . . Fabricators . | . . . . . . . Repair Stations . | . . . . . . . Recycling Units . | . . . . . . . Scanalyzers . | . . . . . . . Garrison Access . | . . . . . . . Data Cores Recovered . | . . . . . . . Used . | . . . . . . . Hacking Detections . | . . . . . . . Full Trace Events . | . . . . . . . Feedback Events . | . . . . . . . Feedback Blocked . | . . . . . . . Robot Schematics Acquired . | . . . . . . . Robots Built . | . . . . . . . Authchips . | . . . . . . . Time . | . . . . . . . Total Robot Build Rating . | . . . . . . . Part Schematics Acquired . | . . . . . . . Parts Built . | . . . . . . . Authchips . | . . . . . . . Time . | . . . . . . . Total Part Build Rating . | . . . . . . . Parts Repaired . | . . . . . . . Time . | . . . . . . . Parts Recycled . | . . . . . . . Recycled Matter . | . . . . . . . Retrieved Matter . | . . . . . . . Retrieved Components . | . . . . . . . Parts Scanalyzed . | . . . . . . . Part Schematics Acquired . | . . . . . . . Parts Damaged . | . . . . . . . Bothacking | -11 -10 -10 -9 -9 -8 -8 ------------ Run | Jun Mat Min Mat Min Mat Sto Used RIF Installer . | . . . . . . . Robots Hacked . | . . . . . . . Non-combat . | . . . . . . . Combat . | . . . . . . . Robot Hacks Applied . | . . . . . . . Relay Couplers Released . | . . . . . . . Fabnet Peak Effective % . | . . . . . . . Robots Rewired . | . . . . . . . Allies Hacked . | . . . . . . . Hacks Repelled . | . . . . . . . Allies | -11 -10 -10 -9 -9 -8 -8 -------- Run | Jun Mat Min Mat Min Mat Sto Total Allies 11 | . . 1 . . . 10 Largest Group 9 | . . 1 1 . . 9 Highest-Rated Group 157 | . . 31 31 . . 157 Highest-Rated Ally 31 | . . 31 31 . . 29 Total Orders . | . . . . . . . Ally Attacks 42 | . . . 3 . . 39 Total Damage 488 | . . . 44 . . 444 Kills 7 | . . . 1 . . 6 Allies Corrupted . | . . . . . . . Allies Melted . | . . . . . . . Intel | -11 -10 -10 -9 -9 -8 -8 ------- Run | Jun Mat Min Mat Min Mat Sto Robot Analysis Total . | . . . . . . . Derelict Logs Recovered 2 | . . 1 . 1 . . Drone Launches . | . . . . . . . Drone Recoveries . | . . . . . . . Exploration | -11 -10 -10 -9 -9 -8 -8 ------------- Run | Jun Mat Min Mat Min Mat Sto Turns Passed 360 | 9 12 10 93 23 46 167 Spaces Moved 646 | 18 23 13 185 46 87 274 Core 646 | 18 23 13 185 46 87 274 Treads . | . . . . . . . Legs . | . . . . . . . Wheels . | . . . . . . . Hover . | . . . . . . . Flight . | . . . . . . . Fastest Speed 50 | 50 50 50 50 50 50 50 Average Speed 50 | 50 50 50 50 50 50 50 Slowest Speed 50 | 50 50 50 50 50 50 50 Overloaded Moves . | . . . . . . . Propulsion Burnouts . | . . . . . . . Robots Hopped . | . . . . . . . Cave-ins Triggered . | . . . . . . . Exploration Rate (%) 19 | 3 5 9 23 21 16 59 Regions Visited 6 Branch Regions 3 Pre-discovered Areas . | . . . . . . . Known Exits Taken 2 | . . . . 1 1 . Unknown Exits Taken 4 | 1 1 1 1 . . . Scrap Searched 2 | . . 1 . 1 . . Spaces Dug . | . . . . . . . Terrain Destroyed . | . . . . . . . Melee . | . . . . . . . Projectile . | . . . . . . . AOE . | . . . . . . . Terrain Rammed . | . . . . . . . Walls Destroyed . | . . . . . . . Machines Disabled . | . . . . . . . Actions | -11 -10 -10 -9 -9 -8 -8 --------- Run | Jun Mat Min Mat Min Mat Sto Total 676 | 17 22 16 184 45 88 304 Wait 16 | . . . . . . 16 Move 641 | 17 22 13 184 45 86 274 Hop . | . . . . . . . Pick Up . | . . . . . . . Fast Attach 1 | . . . . . . 1 Attach . | . . . . . . . Detach 1 | . . . . . . 1 Swap . | . . . . . . . Drop . | . . . . . . . Fire . | . . . . . . . Melee . | . . . . . . . Ram 14 | . . 3 . . 2 9 Kick . | . . . . . . . Crush . | . . . . . . . Escape Stasis . | . . . . . . . Rewire 3 | . . . . . . 3 Trap . | . . . . . . . Miscellaneous . | . . . . . . . Route ------- -11/Junkyard -10/Materials -10/Mines -9/Materials -9/Mines (discovered 2 exits: *Mat x2) -8/Materials (discovered 2 exits: *Sto x2) -8/Storage History --------- Turn | Location | Event 3 | -11/Junkyard | Discovered new exit (range 15) 10 | -11/Junkyard | Entered Materials 14 | -10/Materials | Discovered new exit (range 16) 22 | -10/Materials | Entered Mines 25 | -10/Mines | Met a Derelict testing a Signal Generator 27 | -10/Mines | Discovered new exit (range 7) 32 | -10/Mines | Core integrity fell below 50% 32 | -10/Mines | Entered Materials 32 | -9/Materials | Accompanied by 1 ally 32 | -9/Materials | Evolved 2 slots: Utility x2 117 | -9/Materials | Discovered new exit (range 16) 125 | -9/Materials | Entered Mines 141 | -9/Mines | Discovered new exit (range 14) 147 | -9/Mines | Identified exit to Materials 148 | -9/Mines | Entered Materials 148 | -8/Materials | Evolved 2 slots: Utility x2 149 | -8/Materials | Identified exit to Storage 187 | -8/Materials | Discovered exit to Storage (range 13) 194 | -8/Materials | Entered Storage 218 | -8/Storage | Core integrity fell below 50% 283 | -8/Storage | Core integrity fell below 20% 305 | -8/Storage | Build established: Mutant 315 | -8/Storage | Assisted by bots powering up and referring to "LRC-V3" 317 | -8/Storage | Garrison activated, responded to threat 335 | -8/Storage | Found Prototype Protection 335 | -8/Storage | Identified Lgt. Regenerative Plating 361 | -8/Storage | Destroyed by Y-45 Defender with Beam Rifle Last Messages --------------- 00312_ Attempting to rewire G-50 Soldier. 00315_ One of them suddenly speaks: "Hello LRC-V3. What is your command?" 00317_ G-47 Trooper calls for garrison reinforcements. 00317_ ALERT: Activating Garrison Access S001. 00318_ Slug penetrates Trooper 3a. 00318_ Trooper 3a destroyed. 00319_ System corrupted: Matter fused (-8). 00319_ G-47 Trooper destroyed. 00321_ Trooper 3i suffers critical hit (Burn). 00324_ Trooper 3i destroyed. 00325_ S-10 Pest destroyed. 00327_ Acquired 9 matter. 00334_ Connecting with Door Terminal... >>Open(Door) Sealed Heavy Doors opened. 00335_ SDG|V5Y6S33Q%S9Q#5#STJGP 00335_ Acquired Prototype Protection. 00335_ Identified Lgt. Regenerative Plating. 00345_ O-16 Technician: "IFF HANDSHAKE FAILED. SECURING TERMINAL." 00351_ Slammed into A-02 Transporter. Map ----- +----------------------------------------------------+ | ?????????? ????????"???????# #???# ## # | | ??????????? ???????" ???????# #####+###### | | ???????????? ?????"" ????????# ## # | | ????????????? ????? ????????# ## # | | ?????######+##+######+########## ## # | | ?????# # # | | ?????# / """ """ # | | ?????# # """ """ # | | ?????#########+######+##########+#### """ """ # | | ???????????? #??# ##T #??# # | | ##?????????# T#?# ### #??######## ?# | | #?????????##"""##?# #?# #??????????##? | | ?????????????????# #?###????????????? | | "?????????????????# """ """ ##???????????????? | | ""????????????????# """ """ #???????????????? | | """ T"????????????# """ """ ##???????????????? | | ""#???????????# #????????????????? | | #?????????????######Y####????????????????? | | #????????????????# #?????????????????? | | #????????????????# #?????????????????? | | ######????????????????# #?????????????????? | | #?????????????????# #?????????????????? | | #?????????????????# #?????????????????? | | " #?????????????????## ##?????????????????? | | "" #??????????????????# #??????????????????? | | ?"" #??????????????????# @ #??????????????????? | | ??" #??????????????????#Y #??????????????????? | | ??" #??????????????????+ #??????????????????? | | """ #??????????????????# #??????????????????? | | #??????????????????# #??????????????????? | | #####??????????????????# #??????????????????? | | ???????????????????????# #??????????????????? | | ???????????????????????# #??????????????????? | | ???????????????????????# ??????????????????? | | ???????????????????????# ??????????????????? | | ??????????????????????? ??????????????????? | | ???????????????????????#####+?????????????????? | | ??????????????????????????????????????????????? | | ??????????????????????????????????????????????? | | ??????????????????????????????????????????????? | | ??????????????????????????????????????????????? | | ??????????????????????????????????????????????? | | ??????????????????????????????????????????????? | | ??????????????????????????????????????????????? | | ??????????????????????????????????????????????? | | ??????????????????????????????????????????????? | | ??????????????????????????????????????????????? | | ??????????????????????????????????????????????? | | ??????????????????????????????????????????????? | | | +----------------------------------------------------+ Best States ------------- Heat Dissipation 31 Energy Generation 5 Energy Capacity 100 Matter Stores 300 Matter Capacity 300 Sight Range 16 Terrain Scan Density 10 Evasion (%) 50 Item Schematics ----------------- None Robot Schematics ------------------ None Fabricated ------------ Nothing Alien Tech Used ----------------- None Achievements -------------- None Challenges ------------ None Game ------ Seed GammaLaserPenetrator Manual? 0 Play Time 00:05:57 Cumulative 207.8 hours Start 2023.05.14 @ 15:18:54 End 2023.05.14 @ 15:22:44 Sessions 1 Manual Loads 0 Difficulty Rogue Special Mode None Game No. 588 Rogue 588 Adventurer 0 Explorer 0 Win Type - Total 9 Types 7/0/1/1/0/0/0/0/0 Lore% 81 Gallery% 79 Achievement% 71 Wizard Run 0 Options --------- ASCII 0 Keyboard 0 Movement Numpad Keybinds 0 Fullscreen 1 Font 16/SmallcapsGlow Map View 75x55 Tactical HUD 1 Map Filters NONE Filters NONE Steam 1 RUN: 0a6e4a57-b5ff-4c73-a4f9-40f729e57a36